[Event "EU-ch 12th"]
[Site "Aix les Bains"]
[Date "2011.03.27"]
[Round "6"]
[White "Mastrovasilis, Athanasios"]
[Black "Olivier, Jean Christophe"]
[Result "1/2-1/2"]
[ECO "E04"]
[WhiteElo "2547"]
[BlackElo "2401"]
[Annotator "Marchand,A/Primel,D"]
[PlyCount "106"]
[EventDate "2011.03.22"]
[EventType "swiss"]
[EventRounds "11"]
[EventCountry "FRA"]
[SourceTitle "CBM 142 Extra"]
[Source "ChessBase"]
[SourceDate "2011.06.27"]
[SourceVersion "1"]
[SourceVersionDate "2011.06.27"]
[SourceQuality "1"]
[TimeControl "40/5400+30:1800+30"]

1. d4 Nf6 2. c4 e6 3. g3 c5 4. Nf3 d5 5. Bg2 (5. cxd5 {Retombe sur une défense
Tarrasch} exd5 6. Bg2 Nc6) 5... dxc4 6. O-O (6. Qa4+ Bd7 7. Qxc4 Bc6 $132) (6.
Na3 $5 Nc6 7. Nxc4 cxd4 8. O-O Bc5 9. Bf4 $44 {Damljanovic,B (2530)-Renet,O 
(2480) Zenica 1989 (4) 1-0}) 6... Nc6 7. dxc5 $5 {Transposant dans une finale
technique où les Blancs espèrent profiter de la meilleure position du Bg2 par
rapport au Bc8 dont le développement pose problème} (7. Qa4 {La grande ligne}
Bd7 (7... cxd4 8. Nxd4 Qxd4 9. Bxc6+ Bd7 10. Rd1) 8. Qxc4 (8. dxc5 Na5) 8... b5
9. Qd3 Rc8 10. dxc5 Bxc5 11. Nc3 Nb4 (11... b4 12. Nb5 (12. Ne4 Nxe4 13. Qxe4
Ne7 14. Ne5 (14. Bg5 O-O 15. Rac1) (14. Rd1 Qb6)) 12... O-O 13. Nd6 Nd4 14. Bf4
Nd5 15. Ng5 (15. Be5 Nxf3+ $132)) 12. Qd2 (12. Qd1) 12... Qb6 13. Ne5 Rd8 14.
a3 Nc6 15. Nd3 O-O {Vladimirov,E (2565)-De la Villa Garcia,J (2450) Marchena
1990 1-0} (15... Bf8)) (7. Ne5 Nxe5 (7... Bd7 8. Na3 cxd4 9. Naxc4 Bc5 (9...
Rc8 10. Qb3 (10. Bf4) 10... Nxe5 11. Nxe5 Bc6 12. Nxc6 bxc6 13. Rd1 c5 14. e3
$14 {Kasparov,G (2715)-Andersson,U (2575) Belgrade m 1985 (1) 1/2}) (9... Nxe5
10. Nxe5 Qb6 11. Bf4 Bb5 12. b4 Rd8 (12... Bxb4 13. Rb1 $44) 13. a4 $14 {
Tukmakov,V (2574)-Sokolov,A (2565) Lenk op 12th fin 2000 (7) 1/2}) (9... Be7
10. Qb3 (10. Bf4 Nd5 11. Nxd7 Nxf4 12. Bxc6 bxc6 13. Nde5 Nh3+ 14. Kg2 Ng5 15.
f3 $44) 10... Qc7 11. Nxc6 Bxc6 12. Bf4 Qd8 13. Bxc6+ bxc6 14. Ne5 c5 15. Qa4+
Kf8 16. Rac1 Qd5 17. f3 h6 {Kasimdzhanov,R (2699)-Drozdovskij,Y (2625) TUR-chT
Konya 2010 (12) 0-1} (17... Qb7 {[%csl Rb2]})) (9... Nd5 10. Nxc6 Bxc6 11. Qxd4
Nb4 12. Bxc6+ Nxc6 13. Qc3 $14) 10. Qb3 (10. Bf4 O-O 11. Qb3 Rc8 12. Nd3 Bb6)
10... O-O 11. Qxb7 Nxe5 12. Nxe5 Rb8 13. Qf3 Bd6 14. Nc6 Bxc6 15. Qxc6 Qe7 16.
Rb1 $14 {Eljanov,P (2692)-Adams,M (2726) Corus Wijk aan Zee 2008 (8) 1/2}) 8.
dxe5 Qxd1 (8... Nd5 9. Na3 c3 10. bxc3 Nxc3 11. Qc2 Nd5 12. Rd1 Bd7 13. Nc4 $14
{Petrov,J (2426)-Inkiov,V (2416) Kastav Hotel Opatija 12 2000 (6) 1-0}) 9. Rxd1
Nd5 (9... Nd7 10. f4 Rb8 11. a4 Be7 12. Na3 $14)) 7... Qxd1 {81} 8. Rxd1 Bxc5
9. Nbd2 Ke7 {58} (9... c3 $142 $1 {La ligne critique pour cette variante 7.dc5}
10. bxc3 O-O 11. Nb3 (11. Ne1)) 10. Nxc4 $14 {[%csl Ra8,Gc4,Rc8,Ge5]} Ng4 {
[%csl Rf2][%cal Ge6e5]} (10... Ne4 11. Be3 Bxe3 12. Nxe3 Rd8 13. Rxd8 Kxd8 14.
Rd1+ Ke7 15. Nc4 Nf6 16. Nfe5 Nxe5 17. Nxe5 Rb8 18. f4 Nd7 19. Nc4 b6 20. Nd6
Nf8 21. e4 f6 22. Kf2 Bd7 23. Ke3 Rd8 24. e5 fxe5 25. fxe5 {Magerramov,E (2551)
-Bakre,T (2450)/Abu Dhabi 2002/CBM 089 ext/1-0 (51)}) 11. Rf1 {Une nouveauté
assez douteuse car après les Noirs peuvent jouer le coup libérateur e6e5
facilement.} (11. e3 $142 f6 {[%cal Ge6e5]} (11... Bd7 12. h3 (12. Nfd2 $5 Rhd8
13. Ne4 Bb4 14. a3 $16)) 12. Nd4 (12. h3 Nh6 13. Bd2 Nf5 14. Bc3 e5 15. Nfd2 {
[%cal Gd2e4]} Be6 16. Ne4 $14) 12... Nce5 13. Nb3 Bb6 14. Nca5 Rb8 15. h3 Nh6
16. Bd2 Nhf7 17. Bb4+ Ke8 18. Rac1 Bd8 19. Rc2 Nd7 20. Nd4 Nb6 21. Nb5 Be7 22.
Bxe7 Kxe7 23. Bxb7 Bd7 24. Nxa7 Rxb7 25. Nxb7 Ra8 {Buhmann,R (2572)-Piasetski,
L (2303)/Caleta 2011/CBM 141/1-0}) 11... e5 $1 12. h3 Be6 $11 13. hxg4 (13.
Nfd2 $5 Nh6 14. b3 Rac8 15. Bb2) 13... Bxc4 14. Bg5+ f6 15. Rfc1 $1 {[%csl Rc4,
Rc5] Profitant de la petite avance de développement} Bxe2 (15... b5 16. b3 fxg5
17. bxc4 Ba3 18. cxb5 $1 Bxc1 19. Rxc1 Na5 20. Rc5 (20. Nxe5 Rac8) 20... h6 21.
Rxe5+) 16. Rxc5 e4 {38} (16... Ba6 $6 17. Be3) 17. Re1 (17. Nd2 $1 fxg5 18. Re1
Bd3 19. Nxe4 $40 {[%csl Ge1,Re7]}) 17... exf3 18. Bxf3 {[%csl Re7]} Nd4 19.
Bxe2 fxg5 20. Bf3+ {[%csl Gf3]} (20. Bc4+ Kd6 (20... Kf6 21. Re4 Rad8 22. f4
$40 {[%csl Rf6]}) 21. Rd5+) 20... Kf6 21. Bxb7 Rab8 22. Rc7 $16 {[%csl Gb7,Gc7]
} Ne6 {18} 23. Rc6 (23. Rd7) 23... Rhe8 24. Bc8 Rbxc8 $1 {Transposant dans une
finale de R égale} 25. Rexe6+ Rxe6 26. Rxc8 Re2 27. Rc6+ Kf7 28. Rc7+ Kf6 29.
Rb7 a5 30. Kg2 a4 31. Kf3 Rc2 32. a3 (32. Rb6+) 32... g6 33. Rb6+ Kg7 34. Rb4
h5 $1 35. Ke3 h4 36. gxh4 gxh4 37. Kf3 g5 38. Rxa4 Rxb2 39. Rb4 Ra2 40. a4 Ra3+
41. Ke4 h3 42. Kf5 h2 43. Rb7+ Kh6 44. f4 Rf3 45. Rb6+ Kg7 46. Rb7+ Kh6 47.
Rb6+ Kg7 48. Rb1 Rxf4+ 49. Kxg5 Rxa4 50. Rh1 Ra2 51. Kh4 Kg6 52. Kg3 Kg5 53.
Rxh2 Ra3+ 1/2-1/2

[Event "EU-ch 12th"]
[Site "Aix les Bains"]
[Date "2011.03.22"]
[Round "1"]
[White "Kreisl, Robert"]
[Black "Grachev, Boris V"]
[Result "0-1"]
[ECO "E04"]
[WhiteElo "2394"]
[BlackElo "2675"]
[Annotator "Marchand,A/Primel,D"]
[PlyCount "62"]
[EventDate "2011.03.22"]
[EventType "swiss"]
[EventRounds "11"]
[EventCountry "FRA"]
[SourceTitle "CBM 142 Extra"]
[Source "ChessBase"]
[SourceDate "2011.06.27"]
[SourceVersion "1"]
[SourceVersionDate "2011.06.27"]
[SourceQuality "1"]
[TimeControl "40/5400+30:1800+30"]

1. Nf3 d5 2. d4 Nf6 3. c4 e6 4. g3 dxc4 5. Bg2 (5. Qa4+ Bd7 (5... c6 6. Qxc4 b5
7. Qc2 (7. Qd3 Bb7 8. Bg2 Nbd7 9. O-O a6 10. a4 c5 $36) (7. Qb3 Bb7 8. Bg2 Nbd7
9. O-O a6 10. Ne5 (10. a4 c5) 10... Nxe5 11. dxe5 Nd7 12. Nc3 Nxe5 13. Ne4 $44
{Ehlvest,J (2595)-Vitiugov,N (2687) Moscow Aeroflot op-A 2009 (6) 1/2}) 7...
Bb7 {Demarre,J (2190)-David,A (2587) Syre Memorial op 32nd 2009 (3) 0-1} 8. Bg2
Nbd7 9. Ne5 $1 Qb6 10. O-O $5 Rc8 {Tratar,M (2420)-Pavasovic,D (2460) Portoroz
op 1997 1/2} (10... Qxd4 11. Nxd7 Qxd7 12. Rd1 $44)) 6. Qxc4 Bc6 7. Bg2 Nbd7 8.
Nc3 Nb6 9. Qd3 Bb4) 5... Bd7 $5 {Une ligne secondaire un peu passive mais les
Noirs peuvent souvent s'accrocher au Pc4} 6. Ne5 (6. Qc2 c5 7. Qxc4 Bc6 8. O-O
Nbd7 {[%cal Ga8c8,Gc8c4]} 9. dxc5 Bxc5 10. Nc3 Rc8 $11) 6... Bc6 7. Nxc6 {
Les Blancs gagnent la paire de B mais en contrepartie, les Noirs ont une
petite avance de développement et il ne sera pas facile pour les Blancs de
récupérer le P"c4"} Nxc6 8. O-O (8. e3) 8... Qd7 {[%cal Ge8c8]} (8... Be7) 9.
e3 (9. Nc3 Nxd4 10. Bxb7 Rb8 11. Bg2 Be7 12. e3 Nb5 13. Qc2 Nxc3 14. Qxc3 Qb5
15. b3 O-O 16. bxc4 Qb6 17. Qc2 Rfd8 18. Bd2 Bb4 19. Bxb4 Qxb4 20. Rab1 Qa5 21.
Rb5 Rxb5 22. cxb5 Qxb5 23. Qxc7 Qb6 {Jussupow,A (2620)-Karpov,A (2715)/Belfort
1988/CBM 008/1/2-1/2}) 9... O-O-O {L'idée de la variante Bd7 et la position
noire est trés solide} (9... Rb8 10. Qe2 b5 $132 (10... e5 $5) 11. a4 (11. b3
cxb3 12. axb3) 11... a6 12. axb5 axb5 13. b3 cxb3 14. Nd2 Be7 15. Nxb3 O-O 16.
Bd2 Rfc8 17. Rfc1 Nd5 18. Nc5 {Georgiev,K (2590)-Anand,V (2515) Hoogovens Wijk
aan Zee 1989 (2) 0-1} (18. h4 $14 {[%cal Gh4h5] Anand})) 10. Nd2 {[%cal Gd2c4]}
(10. Qa4 Nd5 11. Qxc4 h5 12. Nc3 h4 13. Bd2 hxg3 14. fxg3 (14. hxg3) 14... f5
15. Rac1 g6 16. b4 Bxb4 17. Rb1 Qh7 18. h3 Qh6 19. Rxb4 Ncxb4 20. Rb1 Nc6 21.
Na4 Nb6 22. Qxe6+ Kb8 23. Rb2 Rhe8 24. Qb3 Qh8 {Antic,D (2487)-Kapnisis,S 
(2529)/Eretria 2011/Mega2011 Update 29/1/2-1/2 (31)}) 10... h5 $1 {[%cal Gh5h4]
} 11. Nxc4 h4 $146 (11... Nd5 12. Bd2 h4 13. b4 hxg3 14. hxg3 Bxb4 15. Bxb4
Ndxb4 16. Qb3 Rh5 17. Rab1 Rdh8 18. Ne5 Nxe5 19. Qxb4 Ng4 20. Qxb7+ Kd8 21.
Rfc1 Qd6 22. Rc6 Qd7 23. Rbc1 e5 24. Rxc7 {1-0 Prohaszka,P (2501)-Takacs,B 
(2354)/Heviz 2010/CBM 137 Extra}) 12. Qa4 (12. Bd2 hxg3 13. fxg3 (13. hxg3 Nd5
14. Rc1)) 12... hxg3 13. hxg3 (13. fxg3 $5 {Affaiblit la structure mais
amoindrit la pression sur la colonne "h"} Nd5 14. Bd2 f5 {[%cal Gg7g5,Gd7h7]}
15. b4 $1 Bxb4 (15... g5 16. b5) 16. Bxb4 Ndxb4 17. Ne5 $36 {[%csl Ra7,Rb4,Gg2]
[%cal Gg2b7]}) 13... Nd5 14. Bd2 Kb8 15. Rfc1 f5 {[%cal Gd7f7,Gf7h5]} 16. Na5 (
16. b4 $142 $5 Ne5 (16... Ncxb4 17. Qxd7 Rxd7 18. Ne5 Rd8 19. Nf7) 17. Qxd7
Nxd7 18. a3 $14 {Après l'échange des Q, les Noirs n'auront plus d'attaque а
l'aile-roi et la structure Blanche est un peu meilleure}) 16... Nxa5 17. Qxd7 (
17. Qxa5 $6 Qf7 {[%cal Gf7h5]} (17... g5 {[%cal Gd7h7]})) 17... Rxd7 18. Bxa5
Nf6 19. Bc3 {Bizarrement, la paire de B n'est pas trés utile et il n'est pas
facile d'améliorer la position des Blancs} (19. Rc2 Bd6 20. Rac1 $11) (19. Kf1)
19... Bd6 20. Bf3 {[%cal Gg1g2]} g5 $1 {[%cal Gd7h7] L'attaque thématique
dans cette variante Bd7} 21. Kg2 g4 22. Be2 Rh3 23. Bc4 (23. Rh1 Rdh7 24. Bd3
Ne4 25. Bxe4 fxe4 26. Rxh3 $11) (23. Bd3 Rdh7 24. Rh1) 23... Rdh7 $36 24. Rh1
$1 Ne4 $36 25. Bxe6 (25. Rxh3 gxh3+ (25... Rxh3 26. Bxe6) 26. Kf3 Ng5+ 27. Ke2
$11) 25... Bxg3 $1 26. Bxf5 $2 (26. Rxh3 $8 gxh3+ 27. Kf3 h2 28. fxg3 h1=Q+ 29.
Rxh1 Rxh1 30. Bxf5 Ng5+ 31. Kg2 {[%csl Gg3][%cal Gg3g8]}) 26... Rh2+ 27. Rxh2
Rxh2+ 28. Kg1 Nxf2 29. Be1 Nh3+ 30. Kf1 Bxe1 31. Bxg4 Bb4 0-1

[Event "EU-ch 12th"]
[Site "Aix les Bains"]
[Date "2011.03.31"]
[Round "9"]
[White "Michalik, Peter"]
[Black "Zakhartsov, Viacheslav V"]
[Result "1-0"]
[ECO "E04"]
[WhiteElo "2471"]
[BlackElo "2608"]
[Annotator "Marchand,A/Primel,D"]
[PlyCount "99"]
[EventDate "2011.03.22"]
[EventType "swiss"]
[EventRounds "11"]
[EventCountry "FRA"]
[SourceTitle "CBM 142 Extra"]
[Source "ChessBase"]
[SourceDate "2011.06.27"]
[SourceVersion "1"]
[SourceVersionDate "2011.06.27"]
[SourceQuality "1"]
[TimeControl "40/5400+30:1800+30"]

1. d4 Nf6 2. c4 e6 3. g3 d5 4. Bg2 dxc4 5. Nf3 Nc6 {[%cal Ga8b8,Gb7b5]} (5...
a6) 6. Qa4 (6. O-O {L'alternative mais qui est plus risquée car il faut
gambiter le P "c4"}) 6... Bb4+ (6... Nd7 $5 {[%cal Ge6e5]} 7. Qxc4 Nb6 8. Qb5 (
8. Qd3 e5) 8... Bd7 9. Qd3 $146 (9. Qb3 Na5 (9... Bd6 10. e4)) 9... Nb4 10. Qd2
c5 $132) 7. Bd2 Bd6 $5 (7... Nd5 {La grande ligne mais Bd6 est devenu
populaire depuis quelques années et c'est une ligne beaucoup plus simple а
jouer malgré la perte de temps}) 8. Na3 {Il y a encore peu de théorie sur
cette variante mais les Blancs ont un jeu actif.} (8. Qxc4 O-O 9. Bc3 Qe7 10.
Ne5 Bxe5 11. dxe5 Nd5 12. O-O Rd8 13. Na3 Nxc3 14. Qxc3 Bd7 15. Nc2 Be8 16. b4
a5 17. a3 axb4 18. axb4 Rxa1 19. Rxa1 Rb8 20. Be4 f6 21. exf6 Qxf6 22. Qc5 Rd8
{Anand,V (2770)-Kramnik,V (2790)/Frankfurt 1998/1/2-1/2 (40)}) (8. Ne5 Bxe5 9.
Bxc6+ bxc6 10. dxe5 Qd5 11. f3 Nd7 12. Nc3 Qc5 {[%csl Re1]} (12... Qxe5 13.
Qxc6) 13. f4 (13. Ne4 Qb5 14. Qa3 Bb7 (14... c5 {Ouerk,Y (2248)-Favarel,A 
(2347) Condom IM 12th 2013 (9) 0-1})) 13... O-O 14. O-O-O Rb8 15. Ne4 Qb5 $132
{Crisan,A (2635)-Rajkovic,D (2497) Kladovo 2001 (2) 1-0}) (8. O-O O-O 9. Qxc4
e5 10. d5 Ne7 11. Nc3 h6 12. Rfd1 a6 13. Qb3 Rb8 14. Be1 {Evdokimov,A (2503)
-Aleksandrov,A (2635) RUS-chT Sochi 2005 (11) 1-0}) 8... Rb8 $5 {[%cal Gb7b5]}
(8... Bxa3 {Un coup candidat naturel mais non seulement, les Noirs donnent la
paire de B dans une position relativement ouverte mais le B a joué trois fois
en huit coups...} 9. Qxa3 (9. bxa3 Ne4 $13 {Postny,E (2627)-Roiz,M (2659)
Maalot-Tarshiha 2008 (6) 1/2}) 9... Ne4 10. Be3 Qd6 11. Rc1 Qxa3 12. bxa3 Nd6
13. Ne5 Bd7 14. Nxc4 Nf5 {Gustafsson,J (2616)-Khenkin,I (2604) GER-ch 76th
Altenkirchen 2005 (5) 1/2}) (8... O-O 9. Nxc4 Ne4 10. O-O {Kohlweyer,B (2435)
-Farago,I (2491) Liechtenstein op 27th 2009 (6) 1/2} (10. Nfe5 $5 {[%cal Gg2e4,
Ge5c6]} Nxd2 11. Nxc6 bxc6 12. Nxd6 cxd6 13. Qb4 Nc4 14. Qxc4 Rb8 15. Qc3 Qb6 (
15... Ba6))) 9. Nxc4 $1 $146 {Une forte amélioration} (9. Qxc4 O-O 10. Rd1 Bd7
11. Qc2 Qe7 12. Nc4 b5 13. Ne3 Nb4 14. Qb3 a5 15. a3 a4 16. Qc3 Ne4 17. Qc1 Nd5
18. O-O Nxd2 19. Qxd2 Nxe3 20. Qxe3 b4 21. Ne5 bxa3 22. Nxd7 Qxd7 23. bxa3 Rb3
{Beliavsky,A (2645)-Farago,I (2530)/Hungary 1998/1/2-1/2 (53)}) 9... b5 10.
Nxd6+ cxd6 11. Qc2 {[%cal Gc2c6]} Bb7 (11... Qb6 {[%cal Gb6c6,Gb6b5]} 12. O-O
Bb7 13. Rac1 (13. Bg5 Nd7 (13... O-O 14. Bxf6 gxf6 15. Qe4 f5 16. Qh4 {[%cal
Gf3g5]} f6 17. d5 $1) (13... Nb4 14. Qb3 Nbd5 15. a4 O-O 16. axb5 h6 17. Bxf6
Nxf6 18. Qa4 {[%csl Ra7]} Bd5 $11 {[%csl Rb5]}) 14. Rac1) 13... O-O) 12. O-O
$14 Ne7 13. Rfc1 $32 {[%cal Ga2a4,Ga1a7]} Rc8 (13... O-O {Plus simple}) 14. Qd3
{[%csl Rb5]} (14. Qb3) 14... Qd7 15. Qa3 $5 (15. Rxc8+ Nxc8 {[%csl Rc8]} (15...
Qxc8 16. Rc1 $32) 16. Bg5 O-O 17. Bxf6 gxf6 18. e4 $14 {[%csl Gd4,Ge4][%cal
Ga1c1]}) 15... O-O 16. Qxa7 $5 {complique la position} (16. Bf4 $5 {[%csl Rd6]}
Rxc1+ 17. Rxc1 Rd8 18. Bg5 (18. Qa5 {[%cal Gc1c7]} Bc6 (18... Nc6 19. Qxb5)))
16... Rxc1+ 17. Rxc1 Ra8 18. Ne5 $8 (18. Qb6 Nfd5) 18... Rxa7 19. Nxd7 Bxg2 $2
(19... Ne8 {Evite l'échec intermédiaire}) 20. Nxf6+ gxf6 21. Kxg2 $16 Rxa2 22.
Bh6 $1 {[%csl Rg8][%cal Gc1c8] Très désagréable pour les Noirs} Ra8 23. e4 {
[%csl Gd5,Re7,Gf5]} Rc8 24. Ra1 (24. Rxc8+ $5 Nxc8 25. f3 Nb6 {[%cal Gb6c4]}
26. b3 {[%csl Rb6,Gh6] Le N privé des cases centrales est complètement dominé
par le B}) 24... f5 25. Bg5 $1 (25. f3 fxe4 26. fxe4 Rc2+) 25... Kf8 26. Bxe7+
Kxe7 27. exf5 exf5 $14 {"Toutes les finales de R sont nulles" mais la
structure Noire donne des petites chances aux Blancs.} 28. Ra5 $1 Rb8 29. Kf3
Ke6 30. Ke3 (30. Kf4 $143 Kd5 31. Ra7 Kxd4 32. Rxf7 Rc8 {[%cal Gc8c2]}) 30...
Rb7 31. Ra8 Kd5 32. Kd3 f4 33. g4 f6 34. Rh8 Re7 35. Rb8 $1 Kc6 36. Rf8 Rg7 37.
h3 Rg6 {L'activité est souvent un facteur décisif en finale de R} (37... h5 $5
38. f3 hxg4 39. hxg4 Re7 40. Rxf6 Re3+ 41. Kd2 Rxf3 42. g5 Kd5 43. g6 Rg3 44.
Rxf4 Rxg6 $11) 38. Ke4 Rh6 39. Rc8+ Kb6 40. Rc3 $36 {[%csl Gc3,Rh6]} b4 41. Rd3
(41. Rb3) 41... Kc6 42. d5+ Kc5 43. Kxf4 {[%csl Rc5,Gf4,Gg4,Gh3] Le K noir est
assez éloigné de l'aile-roi et la majorité des Blancs a des bonnes chances} Rg6
44. h4 Kc4 45. Rd2 Kb3 $2 46. Kf5 $18 {[%csl Rf6,Rg6]} Ka2 47. f4 {[%cal Gh4h5]
} Rg8 48. Ke6 Rxg4 49. Kxd6 Rxf4 50. Kc5 1-0

[Event "EU-ch 12th"]
[Site "Aix les Bains"]
[Date "2011.03.26"]
[Round "5"]
[White "Salgado Lopez, Ivan"]
[Black "Libiszewski, Fabien"]
[Result "1/2-1/2"]
[ECO "E04"]
[WhiteElo "2630"]
[BlackElo "2481"]
[Annotator "Marchand,A/Primel,D"]
[PlyCount "102"]
[EventDate "2011.03.22"]
[EventType "swiss"]
[EventRounds "11"]
[EventCountry "FRA"]
[SourceTitle "CBM 142 Extra"]
[Source "ChessBase"]
[SourceDate "2011.06.27"]
[SourceVersion "1"]
[SourceVersionDate "2011.06.27"]
[SourceQuality "1"]
[TimeControl "40/5400+30:1800+30"]

1. d4 {[%emt 0:00:31]} d5 {[%emt 0:00:31]} 2. Nf3 {[%emt 0:00:01]} Nf6 {
[%emt 0:00:01]} 3. c4 {[%emt 0:00:31]} e6 {[%emt 0:00:01]} 4. g3 {[%emt 0:00:
31]} dxc4 {[%emt 0:00:31]} 5. Bg2 {[%emt 0:00:01]} (5. Qa4+ $143 Nbd7 6. Bg2 a6
7. Nc3 Rb8 8. Qxc4 b5 9. Qd3 Bb7 $11) 5... Nc6 {[%emt 0:00:31]} (5... Bb4+ 6.
Nbd2 b5 (6... c3 7. bxc3 Bxc3 8. Rb1 Ne4 9. Qc2 Nxd2 10. Nxd2 Bxd2+ 11. Bxd2
O-O 12. Bf4 $14 {Bologan}) 7. O-O O-O 8. a4 c6 9. Qc2 Bb7 10. e4 Nbd7 11. e5
Nd5 12. Ne4 $44 {[%csl Rb7,Rh7][%cal Ge4g5];Carlsen,M (2714)-Ivanisevic,I 
(2607) EU-chT (Men) 16th 2007 (9.1) 0-1}) 6. O-O {[%emt 0:00:31]} (6. Qa4 {
L'alternative qui est moins risquée car en jouant oo, les Blancs ne peuvent
pas récupérer le P et c'est un véritable gambit} Bb4+ (6... Rb8) 7. Bd2 Nd5 (
7... Bd6 {[%cal Ge6e5]} 8. Qxc4 O-O 9. O-O e5 $132 {[%cal Gc8g4]}) 8. Bxb4 (8.
Qb5 O-O (8... Bxd2+ 9. Nbxd2 c3 10. bxc3 Nxc3 11. Qd3 Nd5 12. O-O O-O 13. Rfc1
{Ponomariov,R (2743)-Frolyanov,D (2610) RUS-chT Olginka 2011 (3) 1/2}) 9. Qxc4
Nb6 10. Qd3 e5 11. Nxe5 Bxd2+ 12. Nxd2 Nb4 (12... Nxd4) 13. Qc3 Qxd4 14. Qxd4
Nc2+ 15. Kd1 Nxd4 16. e3 Nf5 17. Ke2 (17. Rc1 c6) (17. Nd3) 17... Re8) 8...
Ndxb4 9. O-O Bd7 (9... Rb8 10. Nc3 a6 11. Ne5 O-O 12. Nxc6 Nxc6 13. Bxc6 bxc6
14. Qxc4 Rxb2 15. Rab1 Rb6 $11) 10. Ne5 a5 11. Nxd7 $14 {Mikhalevski,V (2532)
-Beshukov,S (2428) EU-ch 1st Saint Vincent 2000 (11) 1-0}) 6... Rb8 {[%emt 0:
02:51][%cal Gb7b5]} 7. e3 {[%emt 0:00:45]} (7. Nc3 b5 8. Ne5 Nxe5 9. dxe5 Nd7
10. Qd4 $44 {[%csl Re8]} (10. Qc2 $5 Bb4 11. Rd1 {Wang Yue (2734)-Ni Hua (2646)
CHN-ch Xinghua Jiangsu 2011 (1) 1/2} (11. a4 a6 12. Be3 Bb7 13. Bxb7 Rxb7 14.
Qe4 Qc8 15. Rfd1 c6 16. Qg4 {[%csl Rg7] Naiditsch CE Mai 2011}))) 7... b5 {
[%emt 0:00:31] Le thème de la variante pour s'accrocher au P mais les Blancs
ont des bonnes compensations} (7... a6) 8. Qe2 {[%emt 0:00:01][%cal Gf1d1]} Bb7
{[%emt 0:11:01]} ({RR} 8... Bd6 9. Rd1 O-O 10. e4 Be7 11. h4 Nb4 12. Ne1 c5 13.
Bf4 Rb7 14. dxc5 Rd7 15. Nc3 Bxc5 16. Rxd7 Bxd7 17. Rd1 Qb6 18. a3 Nc6 19. e5
Nd5 20. Bxd5 exd5 21. Nxd5 Qb7 22. Be3 Bxe3 23. Qxe3 {Kozul,Z (2569)-Beliavsky,
A (2668)/Bled 2001/EXT 2002/1-0 (43)}) (8... Be7) (8... a6) 9. b3 $1 {[%emt 0:
03:01] Dans cet ordre de coups, c'est une nouveauté} cxb3 {[%emt 0:01:01]} 10.
axb3 {[%emt 0:00:01][%csl Ga1]} a6 {[%emt 0:01:01]} 11. Bd2 {[%emt 0:05:31]} (
11. Bb2 {Burmakin,V (2554)-Saric,A (2447) Nova Gorica op-A 10th 2005 (4) 1/2})
(11. Nc3 Bb4 12. Bb2 O-O 13. Rfd1 {[%cal Ge3e4]} Qe7 14. e4 $44) 11... Ne4 $146
{[%emt 0:06:31]} (11... Nb4 {Kanep,M (2532)-Jumabayev,R (2547) Khanty-Mansiysk
ol (Men) 39th 2010 (7.2) 1/2}) 12. Rc1 {[%emt 0:04:31]} Nxd2 {[%emt 0:02:31]} (
12... Bd6) 13. Nbxd2 {[%emt 0:00:31]} Nb4 {[%emt 0:01:31]} 14. Ne5 {[%emt 0:01:
31]} Bxg2 {[%emt 0:09:31]} 15. Kxg2 {[%emt 0:01:31]} Qd5+ {[%emt 0:00:31]} 16.
e4 $1 {[%emt 0:02:31]} Qb7 {[%emt 0:01:31]} (16... Qxd4 $6 17. Ndf3 {[%csl Re8]
} Qd8 18. Nc6 $1 Nxc6 19. Rxc6 $32 {[%csl Ra6,Re8]}) 17. Qf3 $44 {[%emt 0:09:
31][%cal Gf3f7,Gf3b7]} (17. d5 $5 {[%cal Ge2e8] Un coup thématique en
particulier avec le K noir resté au centre} Bd6 (17... exd5 $6 18. exd5 Nxd5 (
18... Qxd5+ 19. Ndf3) 19. Nc6+) 18. Nc6 Nxc6 19. Rxc6 {[%csl Ra6]} O-O 20.
Raxa6 $36 {[%cal Gd2f3,Gf3d4]}) 17... c6 {[%emt 0:00:31]} 18. Qc3 {[%emt 0:04:
31][%csl Rc6]} Rc8 {[%emt 0:01:31]} 19. d5 $1 {[%emt 0:01:31][%cal Gc3c8]} c5 {
[%emt 0:04:31]} 20. dxe6 {[%emt 0:03:31]} fxe6 {[%emt 0:00:31]} 21. Qf3 {
[%emt 0:00:31]} Bd6 {[%emt 0:02:31]} 22. Qh5+ {[%emt 0:00:31][%cal Ge5g6]} g6 {
[%emt 0:00:31]} 23. Qh3 $1 {[%emt 0:00:31][%csl Rc8,Re6,Re8]} (23. Nxg6 Qf7 $1)
23... Bxe5 {[%emt 0:02:31]} 24. Qxe6+ {[%emt 0:00:31]} Qe7 $1 {[%emt 0:00:31]}
25. Qxc8+ {[%emt 0:00:31]} Kf7 {[%emt 0:00:31]} 26. Qg4 {[%emt 0:02:31]} Bxa1 {
[%emt 0:01:31]} 27. Rxa1 {[%emt 0:00:31] L'égalité matérielle a été rétablie
mais le K Blanc est plus en sécurité que celui du français} Kg7 {[%emt 0:03:31]
} 28. Nf3 {[%emt 0:02:31]} h5 $6 {[%emt 0:02:45][%csl Rg5]} 29. Qf4 {[%emt 0:
03:31]} Rf8 {[%emt 0:02:31]} 30. Qe3 $1 $14 {[%emt 0:02:31][%csl Rc5,Ge3][%cal
Gf3g5]} Nc2 {[%emt 0:05:31]} (30... Rd8 31. Ng5) 31. Qc3+ {[%emt 0:01:31]} Qf6
{[%emt 0:01:31]} 32. Qxf6+ {[%emt 0:01:31]} Rxf6 {[%emt 0:00:31]} 33. Rc1 {
[%emt 0:05:31]} Rxf3 $5 {[%emt 0:09:31] Les Noirs avaient beaucoup de temps
pour calculer les conséquences du sacrifice de qualité} 34. Kxf3 {[%emt 0:02:
31]} Nd4+ {[%emt 0:00:31]} 35. Ke3 {[%emt 0:00:11]} Nxb3 $44 {[%emt 0:00:01]
[%csl Gc5]} 36. Rd1 {[%emt 0:00:31]} Nd4 {[%emt 0:00:31]} (36... c4 37. Rd7+
Kf8) 37. Rc1 {[%emt 0:03:31]} (37. e5 $5 {[%csl Gf6][%cal Ge3e4,Ge4d5]}) 37...
Nb3 {[%emt 0:00:31]} 38. Rd1 {[%emt 0:01:31]} Nd4 {[%emt 0:00:31]} 39. Kd3 {
[%emt 0:00:31]} a5 {[%emt 0:00:31]} 40. Kc3 {[%emt 0:12:31]} (40. f4 $5 {
Les Blancs ont aussi une majorité а mobiliser}) 40... Kf6 {[%emt 0:01:31]} 41.
f4 {[%emt 0:27:45]} a4 {[%emt 0:39:31] La majorité devient dangereuse} 42. Kb2
{[%emt 0:00:31]} Ke6 {[%emt 0:01:31]} 43. g4 $5 {[%emt 0:00:31]} hxg4 {[%emt 0:
00:31]} 44. Rg1 {[%emt 0:00:31]} b4 {[%emt 0:01:31]} 45. Rxg4 {[%emt 0:00:31]}
a3+ $6 {[%emt 0:03:31]} (45... Kf6) (45... c4 $142 {[%csl Ga3,Gb3,Gc3,Gd3]} 46.
Rxg6+ Kf7 {S.MAZE}) 46. Ka2 {[%emt 0:01:45]} Kf6 {[%emt 0:03:31]} 47. h4 {
[%emt 0:07:45]} c4 {[%emt 0:03:31]} 48. f5 $1 {[%emt 0:00:31][%csl Gh4][%cal
Gh4h8,Gg4d4]} Nb5 {[%emt 0:00:31]} (48... gxf5 $2 49. exf5 {[%csl Rc4][%cal
Gg4d4]}) 49. Rxg6+ $6 {[%emt 0:01:31]} (49. e5+ $142 Kxf5 50. Rxc4 {[%csl Rb4]
[%cal Gc4c5]}) 49... Kf7 {[%emt 0:00:31]} 50. Rg3 {[%emt 0:03:31]} b3+ {
[%emt 0:00:31]} 51. Rxb3 $1 cxb3+ {[%emt 0:00:31]} 1/2-1/2